fUSD/lending_fUSD_20241106
["ID","MTS","AMOUNT","RATE_DAILY","PERIOD"]
[341503534,1730932255452,-151.0,0.000365,7]
[341503535,1730932255462,-151.0,0.000365,7]
[341503536,1730932255471,-151.0,0.000365,7]
[341503537,1730932255480,-319.033336,0.000365,7]
[341503538,1730932255491,-319.033336,0.000365,7]
[341503539,1730932255500,-348.606272,0.000365,7]
[341503540,1730932255509,-348.606272,0.000365,7]
[341503541,1730932255518,-151.0,0.000365,7]
[341503542,1730932255527,-151.0,0.000365,7]
[341503543,1730932255536,-585.196316,0.000365,7]
[341503544,1730932255547,-151.0,0.000365,3]
[341503545,1730932255556,-585.196316,0.000365,7]
[341503546,1730932255565,-268.220619,0.000365,3]
[341503547,1730932255575,-216.372313,0.000365,7]
[341503548,1730932255585,-216.372313,0.000365,7]
[341503549,1730932255594,-152.0,0.0003654,5]
[341503550,1730932255603,-1317.68510138,0.0003657,2]
[341503551,1730932255613,-1800.0,0.00036584,60]
[341503552,1730932255625,-500.0,0.00036584,60]
[341503553,1730932255634,-1100.0,0.00036584,60]
[341503554,1730932255643,-362.0,0.000366,2]
[341503555,1730932255652,-1000.0,0.000366,2]
[341503556,1730932255661,-230.0,0.000366,2]
[341503557,1730932255670,-735.0,0.00036633,60]
[341503558,1730932255680,-500.0,0.00036633,60]
[341503559,1730932255689,-700.0,0.00036644,13]
[341503560,1730932255698,-700.0,0.00036644,13]
[341503561,1730932255707,-700.0,0.00036644,13]
[341503562,1730932255717,-700.0,0.00036644,13]
[341503563,1730932255726,-700.0,0.00036644,13]
[341503564,1730932255735,-151.0,0.00036658,7]
[341503565,1730932255745,-1528.422435,0.000367,7]
[341503566,1730932255754,-1528.422435,0.000367,7]
[341503567,1730932255763,-11544.56953597,0.000367,10]
[341503568,1730932255773,-24921.16970296,0.000367,2]
[341503569,1730932255783,-510.99822,0.0003675,2]
[341503570,1730932255792,-500.0,0.00036756,9]
[341503571,1730932255802,-700.0,0.0003677,2]
[341503572,1730932255811,-607.449162,0.0003677,2]
[341503573,1730932255821,-151.0,0.00036795,7]
[341503574,1730932255830,-217.6171,0.00036795,7]
[341503575,1730932255839,-217.6171,0.00036795,7]
[341503576,1730932255849,-151.0,0.00036795,7]
[341503577,1730932255858,-169.234662,0.00036795,7]
[341503578,1730932255867,-169.234662,0.00036795,7]
[341503579,1730932255876,-151.0,0.00036795,7]
[341503580,1730932255885,-337964.17329781,0.000368,2]
[341503581,1730932255894,-1624.02,0.000368,30]
[341503582,1730932255903,-151.0,0.000368,7]
[341503583,1730932255912,-151.0,0.000368,7]
[341503584,1730932255921,-151.0,0.000368,7]
[341503585,1730932255931,-157.778703,0.000368,7]
[341503586,1730932255940,-151.0,0.000368,7]
[341503587,1730932255949,-151.0,0.000368,7]
[341503588,1730932255958,-152.825335,0.000368,7]
[341503589,1730932255967,-151.0,0.000368,7]
[341503590,1730932255977,-151.0,0.000368,7]
[341503591,1730932255986,-151.0,0.000368,7]
[341503592,1730932255995,-151.0,0.000368,7]
[341503593,1730932256005,-151.0,0.000368,7]
[341503594,1730932256014,-151.0,0.000368,7]
[341503595,1730932256023,-243.037696,0.000368,7]
[341503596,1730932256032,-217.6171,0.000368,7]
[341503597,1730932256041,-217.6171,0.000368,7]
[341503598,1730932256050,-151.0,0.000368,7]
[341503599,1730932256060,-151.0,0.000368,7]
[341503600,1730932256072,-169.234662,0.000368,7]
[341503601,1730932256083,-169.234662,0.000368,7]
[341503602,1730932256094,-151.0,0.000368,7]
[341503603,1730932256103,-151.0,0.000368,7]
[341503604,1730932256111,-151.0,0.000368,7]
[341503605,1730932256120,-257.388567,0.000368,7]
[341503606,1730932256130,-257.388567,0.000368,7]
[341503607,1730932256139,-151.0,0.000368,7]
[341503608,1730932256149,-151.0,0.000368,7]
[341503609,1730932256159,-151.0,0.000368,7]
[341503610,1730932256168,-151.0,0.000368,7]
[341503611,1730932256177,-151.0,0.000368,7]
[341503612,1730932256186,-151.0,0.000368,7]
[341503613,1730932256195,-151.0,0.000368,7]
[341503614,1730932256204,-151.0,0.000368,7]
[341503615,1730932256213,-151.0,0.000368,7]
[341503616,1730932256222,-151.0,0.000368,7]
[341503617,1730932256231,-151.0,0.000368,7]
[341503618,1730932256240,-454.297626,0.000368,7]
[341503619,1730932256249,-271.568934,0.000368,7]
[341503620,1730932256258,-271.568934,0.000368,7]
[341503621,1730932256267,-151.0,0.000368,7]
[341503622,1730932256276,-151.0,0.000368,7]
[341503623,1730932256285,-151.0,0.000368,7]
[341503624,1730932256294,-151.0,0.000368,7]
[341503625,1730932256303,-151.0,0.000368,7]
[341503626,1730932256312,-611.299316,0.000368,7]
[341503627,1730932256321,-151.0,0.000368,7]
[341503628,1730932256330,-611.299316,0.000368,7]
[341503629,1730932256339,-151.0,0.000368,7]
[341503630,1730932256348,-151.0,0.000368,7]
[341503631,1730932256357,-152.727666,0.000368,7]
[341503632,1730932256366,-151.0,0.000368,7]
[341503633,1730932256375,-151.0,0.000368,7]
[341503634,1730932256386,-4684.383306,0.000368,7]
[341503635,1730932256395,-1146.683713,0.000368,7]
[341503636,1730932256404,-541.687758,0.000368,7]
[341503637,1730932256413,-4684.383306,0.000368,7]
[341503638,1730932256422,-1146.683713,0.000368,7]
[341503639,1730932256432,-541.687758,0.000368,7]
[341503640,1730932256441,-164.338677,0.000368,7]
[341503641,1730932256450,-164.338677,0.000368,7]
[341503642,1730932256460,-151.0,0.000368,7]
[341503643,1730932256469,-413.83836,0.000368,7]
[341503644,1730932256478,-413.83836,0.000368,7]
[341503645,1730932256487,-151.0,0.000368,7]
[341503646,1730932256498,-1528.422435,0.000368,7]
[341503647,1730932256507,-1528.422435,0.000368,7]
[341503648,1730932256516,-2040.750861,0.000368,7]
[341503649,1730932256525,-2040.750861,0.000368,7]
[341503650,1730932256534,-151.0,0.000368,7]
[341503651,1730932256543,-151.0,0.000368,7]
[341503652,1730932256552,-151.0,0.000368,7]
[341503653,1730932256561,-170.628097,0.000368,7]
[341503654,1730932256570,-319.033336,0.000368,7]
[341503655,1730932256579,-319.033336,0.000368,7]
[341503656,1730932256589,-348.606272,0.000368,7]
[341503657,1730932256598,-660.64,0.000368,31]
[341503658,1730932256607,-660.64,0.000368,31]
[341503659,1730932256616,-660.64,0.000368,31]
[341503660,1730932256625,-660.64,0.000368,31]
[341503661,1730932256634,-348.606272,0.000368,7]
[341503662,1730932256643,-660.64,0.000368,31]
[341503663,1730932256652,-660.64,0.000368,31]
[341503664,1730932256661,-660.64,0.000368,31]
[341503665,1730932256670,-660.64,0.000368,31]
[341503666,1730932256679,-660.64,0.000368,31]
[341503667,1730932256688,-660.64,0.000368,31]
[341503668,1730932256697,-660.64,0.000368,31]
[341503669,1730932256706,-660.64,0.000368,31]
[341503670,1730932256715,-151.0,0.000368,7]
[341503671,1730932256725,-585.196316,0.000368,7]
[341503672,1730932256735,-151.0,0.000368,3]
[341503673,1730932256745,-585.196316,0.000368,7]
[341503674,1730932256754,-216.372313,0.000368,7]
[341503675,1730932256763,-216.372313,0.000368,7]
[341503676,1730932256773,-151.0,0.000368,7]
[341503677,1730932256783,-1400.0,0.000369,13]
[341503678,1730932256800,-735.0,0.00036907,60]
[341503679,1730932256810,-827.18821614,0.00036907,60]
[341503680,1730932256819,-158.642038,0.00036946,60]
[341503681,1730932256830,-700.0,0.0003697,2]
[341503682,1730932256839,-700.0,0.0003697,2]
[341503683,1730932256849,-400.0,0.0003697,2]
[341503684,1730932256858,-400.0,0.0003697,2]
[341503685,1730932256867,-5876.89,0.00036986,120]
[341503686,1730932256877,-487.89128421,0.00037,120]
[341503687,1730932256886,-1374.83,0.00037,3]
[341503688,1730932256895,-1416.0,0.00037,2]
[341503689,1730932256905,-900.0,0.00037,38]
[341503690,1730932256914,-213.0,0.00037,2]
[341503691,1730932256924,-170829.7199065,0.00037,120]
[341503692,1730932256933,-250.0,0.00037,10]
[341503693,1730932256942,-10399.14111528,0.00037,120]
[341503694,1730932256951,-19228.71385341,0.00037,2]
[341503695,1730932256961,-797.0,0.00037,22]
[341503696,1730932256970,-200.0,0.00037,22]
[341503697,1730932256980,-202.0,0.00037,2]
[341503698,1730932256989,-202.0,0.00037,2]
[341503699,1730932256999,-202.0,0.00037,2]
[341503700,1730932257008,-207.0,0.00037,30]
[341503701,1730932257018,-211.0,0.00037,2]
[341503702,1730932257027,-211.0,0.00037,2]
[341503703,1730932257036,-211.0,0.00037,2]
[341503704,1730932257045,-211.0,0.00037,2]
[341503705,1730932257054,-211.0,0.00037,2]
[341503706,1730932257064,-211.0,0.00037,2]
[341503707,1730932257073,-211.0,0.00037,2]
[341503708,1730932257082,-211.0,0.00037,2]
[341503709,1730932257091,-983.09,0.00037,14]
[341503710,1730932257100,-151.0,0.00037,7]
[341503711,1730932257109,-1417.627266,0.00037,7]
[341503712,1730932257118,-1417.627266,0.00037,7]
[341503713,1730932257127,-151.0,0.00037,7]
[341503714,1730932257136,-151.0,0.00037,7]
[341503715,1730932257145,-189.308258,0.00037,7]
[341503716,1730932257154,-151.0,0.00037,7]
[341503717,1730932257163,-151.0,0.00037,7]
[341503718,1730932257172,-151.0,0.00037,7]
[341503719,1730932257182,-151.0,0.00037,7]
[341503720,1730932257191,-151.0,0.00037,7]
[341503721,1730932257201,-151.0,0.00037,7]
[341503722,1730932257210,-217.6171,0.00037,7]
[341503723,1730932257219,-217.6171,0.00037,7]
[341503724,1730932257228,-151.0,0.00037,7]
[341503725,1730932257237,-650.0,0.00037,2]
[341503726,1730932257248,-169.234662,0.00037,7]
[341503727,1730932257461,-169.234662,0.00037,7]
[341503728,1730932257471,-151.0,0.00037,7]
[341503729,1730932257480,-151.0,0.00037,7]
[341503730,1730932257490,-257.388567,0.00037,7]
[341503731,1730932257500,-257.388567,0.00037,7]
[341503732,1730932257510,-151.0,0.00037,7]
[341503733,1730932257521,-151.0,0.00037,7]
[341503734,1730932257531,-151.0,0.00037,7]
[341503735,1730932257540,-212.805197,0.00037,7]
[341503736,1730932257550,-151.0,0.00037,7]
[341503737,1730932257559,-151.0,0.00037,7]
[341503738,1730932257568,-151.0,0.00037,7]
[341503739,1730932257577,-151.0,0.00037,7]
[341503740,1730932257586,-151.0,0.00037,7]
[341503741,1730932257595,-600.0,0.00037,120]
[341503742,1730932257605,-151.0,0.00037,7]
[341503743,1730932257613,-454.297626,0.00037,7]
[341503744,1730932257623,-271.568934,0.00037,7]
[341503745,1730932257632,-271.568934,0.00037,7]
[341503746,1730932257641,-151.0,0.00037,7]
[341503747,1730932257650,-151.0,0.00037,7]
[341503748,1730932257659,-151.0,0.00037,7]
[341503749,1730932257668,-151.0,0.00037,7]
[341503750,1730932257678,-151.0,0.00037,7]
[341503751,1730932257687,-611.299316,0.00037,7]
[341503752,1730932257696,-151.0,0.00037,7]
[341503753,1730932257706,-611.299316,0.00037,7]
[341503754,1730932257715,-500.0,0.00037,120]
[341503755,1730932257724,-200.0,0.00037,120]
[341503756,1730932257734,-151.0,0.00037,7]
[341503757,1730932257745,-151.0,0.00037,7]
[341503758,1730932257759,-151.0,0.00037,7]
[341503759,1730932257768,-151.0,0.00037,7]
[341503760,1730932257778,-4684.383306,0.00037,7]
[341503761,1730932257787,-1146.683713,0.00037,7]
[341503762,1730932257796,-541.687758,0.00037,7]
[341503763,1730932257806,-4684.383306,0.00037,7]
[341503764,1730932257815,-1146.683713,0.00037,7]
[341503765,1730932257824,-541.687758,0.00037,7]
[341503766,1730932257834,-164.338677,0.00037,7]
[341503767,1730932257843,-164.338677,0.00037,7]
[341503768,1730932257852,-413.83836,0.00037,7]
[341503769,1730932257862,-413.83836,0.00037,7]
[341503770,1730932257871,-151.0,0.00037,7]
[341503771,1730932257881,-1528.422435,0.00037,7]
[341503772,1730932257890,-1528.422435,0.00037,7]
[341503773,1730932257899,-2040.750861,0.00037,7]
[341503774,1730932257909,-2040.750861,0.00037,7]
[341503775,1730932257919,-151.0,0.00037,7]
[341503776,1730932257928,-212.12136,0.00037,7]
[341503777,1730932257938,-151.0,0.00037,7]
[341503778,1730932257947,-319.033336,0.00037,7]
[341503779,1730932257957,-319.033336,0.00037,7]
[341503780,1730932257966,-348.606272,0.00037,7]
[341503781,1730932257976,-348.606272,0.00037,7]
[341503782,1730932257985,-151.0,0.00037,7]
[341503783,1730932257996,-585.196316,0.00037,7]
[341503784,1730932258007,-151.0,0.00037,3]
[341503785,1730932258017,-585.196316,0.00037,7]
[341503786,1730932258026,-216.372313,0.00037,7]
[341503787,1730932258035,-216.372313,0.00037,7]
[341503788,1730932258045,-510.96,0.00037026,120]
[341503789,1730932258054,-500.0,0.0003703,10]
[341503790,1730932258063,-34772.0,0.00037054,5]
[341503791,1730932258072,-354.02989346,0.00037076,2]
[341503792,1730932258082,-152.0,0.00037107,6]
[341503793,1730932258091,-1800.0,0.00037132,60]
[341503794,1730932258101,-1100.0,0.00037132,60]
[341503795,1730932258110,-1100.0,0.00037132,60]
[341503796,1730932258119,-102511.0,0.00037176,5]
[341503797,1730932258128,-151.0,0.00037176,7]
[341503798,1730932258138,-151.0,0.00037176,7]
[341503799,1730932258147,-151.0,0.00037176,7]
[341503800,1730932258156,-151.0,0.00037176,7]
[341503801,1730932258165,-151.0,0.00037176,7]
[341503802,1730932258175,-163.218769,0.00037176,7]
[341503803,1730932258184,-152.175919,0.00037176,7]
[341503804,1730932258193,-151.0,0.00037176,7]
[341503805,1730932258202,-151.0,0.00037176,7]
[341503806,1730932258212,-151.0,0.00037176,7]
[341503807,1730932258221,-151.0,0.00037176,7]
[341503808,1730932258231,-151.0,0.00037176,7]
[341503809,1730932258240,-296.668259,0.00037176,7]
[341503810,1730932258252,-242.088688,0.00037176,7]
[341503811,1730932258261,-242.088688,0.00037176,7]
[341503812,1730932258270,-151.0,0.00037176,7]
[341503813,1730932258280,-151.0,0.00037176,7]
[341503814,1730932258291,-151.0,0.00037176,7]
[341503815,1730932258301,-151.0,0.00037176,7]
[341503816,1730932258310,-217.6171,0.00037176,7]
[341503817,1730932258320,-217.6171,0.00037176,7]
[341503818,1730932258330,-151.0,0.00037176,7]
[341503819,1730932258340,-169.234662,0.00037176,7]
[341503820,1730932258349,-169.234662,0.00037176,7]
[341503821,1730932258359,-151.0,0.00037176,7]
[341503822,1730932258368,-151.0,0.00037176,7]
[341503823,1730932258379,-257.388567,0.00037176,7]
[341503824,1730932258391,-257.388567,0.00037176,7]
[341503825,1730932258402,-151.0,0.00037176,7]
[341503826,1730932258411,-270.472256,0.00037176,7]
[341503827,1730932258423,-151.0,0.00037176,7]
[341503828,1730932258434,-217.794984,0.00037176,7]
[341503829,1730932258444,-151.0,0.00037176,7]
[341503830,1730932258454,-151.0,0.00037176,7]
[341503831,1730932258464,-151.0,0.00037176,7]
[341503832,1730932258475,-151.0,0.00037176,7]
[341503833,1730932258486,-454.297626,0.00037176,7]
[341503834,1730932258496,-271.568934,0.00037176,7]
[341503835,1730932258506,-271.568934,0.00037176,7]
[341503836,1730932258515,-151.0,0.00037176,7]
[341503837,1730932258525,-151.198624,0.00037176,7]
[341503838,1730932258535,-278.04007,0.00037176,7]
[341503839,1730932258544,-151.0,0.00037176,7]
[341503840,1730932258554,-151.0,0.00037176,7]
[341503841,1730932258564,-611.299316,0.00037176,7]
[341503842,1730932258573,-281.817888,0.00037176,7]
[341503843,1730932258583,-611.299316,0.00037176,7]
[341503844,1730932258592,-151.0,0.00037176,7]
[341503845,1730932258602,-151.0,0.00037176,7]
[341503846,1730932258611,-151.0,0.00037176,7]
[341503847,1730932258621,-151.0,0.00037176,7]
[341503848,1730932258631,-4684.383306,0.00037176,7]
[341503849,1730932258640,-1146.683713,0.00037176,7]
[341503850,1730932258650,-541.687758,0.00037176,7]
[341503851,1730932258659,-4684.383306,0.00037176,7]
[341503852,1730932258669,-1146.683713,0.00037176,7]
[341503853,1730932258678,-541.687758,0.00037176,7]
[341503854,1730932258688,-164.338677,0.00037176,7]
[341503855,1730932258697,-164.338677,0.00037176,7]
[341503856,1730932258706,-413.83836,0.00037176,7]
[341503857,1730932258716,-413.83836,0.00037176,7]
[341503858,1730932258725,-151.0,0.00037176,7]
[341503859,1730932258735,-1528.422435,0.00037176,7]
[341503860,1730932258745,-1528.422435,0.00037176,7]
[341503861,1730932258754,-2040.750861,0.00037176,7]
[341503862,1730932258764,-2040.750861,0.00037176,7]
[341503863,1730932258773,-151.0,0.00037176,7]
[341503864,1730932258783,-151.0,0.00037176,7]
[341503865,1730932258792,-319.033336,0.00037176,7]
[341503866,1730932258802,-319.033336,0.00037176,7]
[341503867,1730932258812,-348.606272,0.00037176,7]
[341503868,1730932258821,-348.606272,0.00037176,7]
[341503869,1730932258831,-151.0,0.00037176,7]
[341503870,1730932258840,-585.196316,0.00037176,7]
[341503871,1730932258851,-151.0,0.00037176,3]
[341503872,1730932258860,-585.196316,0.00037176,7]
[341503873,1730932258870,-216.372313,0.00037176,7]
[341503874,1730932258880,-216.372313,0.00037176,7]
[341503875,1730932258890,-735.0,0.00037181,60]
[341503876,1730932258899,-191.0707932,0.000372,103]
[341503877,1730932258909,-155.99,0.00037232,2]
[341503878,1730932258918,-731.65,0.00037262,2]
[341503879,1730932258928,-6635.09943758,0.00037291,15]
[341503880,1730932258937,-1624.02,0.000373,30]
[341503881,1730932258947,-500.0,0.00037304,11]
[341503882,1730932258956,-223.38225,0.00037347,2]
[341503883,1730932258966,-166.07011189,0.00037398,2]
[341503884,1730932258975,-200.0,0.000374,120]
[341503885,1730932258985,-1261.26810607,0.00037435,2]
[341503886,1730932258995,-735.0,0.00037455,60]
[341503887,1730932259005,-11082.96237967,0.00037473,3]
[341503888,1730932259015,-2000.0,0.000375,2]
[341503889,1730932259025,-500.0,0.00037524,3]
[341503890,1730932259035,-2010.0,0.00037534,10]
[341503891,1730932259044,-1000.0,0.00037578,2]
[341503892,1730932259054,-500.0,0.00037578,12]
[341503893,1730932259063,-283.29,0.00037597,120]
[341503894,1730932259072,-983.09,0.000376,14]
[341503895,1730932259082,-160.0,0.00037627,120]
[341503896,1730932259091,-500.0,0.00037671,2]
[341503897,1730932259100,-500.0,0.00037671,2]
[341503898,1730932259110,-500.0,0.00037671,2]
[341503899,1730932259119,-500.0,0.00037671,30]
[341503900,1730932259128,-500.0,0.00037671,31]
[341503901,1730932259138,-500.0,0.00037671,32]
[341503902,1730932259147,-500.0,0.00037671,33]
[341503903,1730932259157,-500.0,0.00037671,34]
[341503904,1730932259166,-500.0,0.00037671,35]
[341503905,1730932259176,-500.0,0.00037671,36]
[341503906,1730932259185,-500.0,0.00037671,37]
[341503907,1730932259194,-500.0,0.00037671,38]
[341503908,1730932259204,-500.0,0.00037671,39]
[341503909,1730932259214,-500.0,0.00037671,40]
[341503910,1730932259223,-500.0,0.00037671,41]
[341503911,1730932259233,-5876.89,0.00037671,120]
[341503912,1730932259242,-152.0,0.00037674,7]
[341503913,1730932259253,-1100.0,0.0003768,60]
[341503914,1730932259262,-500.0,0.0003768,60]
[341503915,1730932259271,-3600.0,0.000377,2]
[341503916,1730932259280,-735.0,0.00037729,60]
[341503917,1730932259290,-1003.8629,0.00037799,2]
[341503918,1730932259300,-200.0,0.00037808,14]
[341503919,1730932259309,-200.0,0.00037808,14]
[341503920,1730932259319,-200.0,0.00037808,14]
[341503921,1730932259328,-200.0,0.00037808,14]
[341503922,1730932259338,-204.96120907,0.00037808,14]
[341503923,1730932259347,-500.0,0.00037847,3]
[341503924,1730932259356,-2000.0,0.00037848,10]
[341503925,1730932259366,-1000.0,0.0003785,15]
[341503926,1730932259375,-500.0,0.00037852,13]
[341503927,1730932259385,-500.0,0.00037856,3]
[341503928,1730932259397,-500.0,0.00037865,3]
[341503929,1730932259407,-500.0,0.00037874,3]
[341503930,1730932259416,-500.0,0.00037882,3]
[341503931,1730932259427,-213.0,0.0003789,2]
[341503932,1730932259437,-207.0,0.0003789,30]
[341503933,1730932259447,-500.0,0.00037891,3]
[341503934,1730932259457,-500.0,0.00037891,3]
[341503935,1730932259468,-10664.84953503,0.000379,2]
[341503936,1730932259477,-500.0,0.000379,3]
[341503937,1730932259487,-1624.02,0.000379,30]
[341503938,1730932259496,-500.0,0.000379,3]
[341503939,1730932259506,-500.0,0.000379,3]
[341503940,1730932259516,-500.0,0.000379,3]
[341503941,1730932259525,-200.0,0.000379,13]
[341503942,1730932259535,-37625.73075153,0.00037999,2]
[341503943,1730932259544,-205.0,0.00037999,2]
[341503944,1730932259553,-205.0,0.00037999,2]
[341503945,1730932259564,-205.0,0.00037999,2]
[341503946,1730932259573,-205.0,0.00037999,2]
[341503947,1730932259583,-213.0,0.00037999,2]
[341503948,1730932259593,-213.0,0.00037999,2]
[341503949,1730932259602,-213.0,0.00037999,2]
[341503950,1730932259611,-213.0,0.00037999,2]
[341503951,1730932259622,-213.0,0.00037999,2]
[341503952,1730932259631,-213.0,0.00037999,2]
[341503953,1730932259641,-212.0,0.00037999,2]
[341503954,1730932259651,-900.0,0.00038,39]
[341503955,1730932259660,-824.0,0.00038,120]
[341503956,1730932259670,-341.14278254,0.00038,120]
[341503957,1730932259679,-4278.64,0.00038,50]
[341503958,1730932259689,-800.0,0.00038,120]
[341503959,1730932259699,-213.0,0.00038,5]
[341503960,1730932259708,-420.0,0.00038,120]
[341503961,1730932259718,-160.0,0.00038,45]
[341503962,1730932259727,-918.53713117,0.00038,2]
[341503963,1730932259736,-5000.0,0.00038,10]
[341503964,1730932259746,-5000.0,0.00038,10]
[341503965,1730932259831,-5000.0,0.00038,120]
[341503966,1730932259841,-60340.89805286,0.00038,120]
[341503967,1730932259850,-1000.0,0.00038,120]
[341503968,1730932259860,-1000.0,0.00038,120]
[341503969,1730932259870,-1000.0,0.00038,120]
[341503970,1730932259879,-968.69964417,0.00038,120]
[341503971,1730932259889,-496.54944633,0.00038,120]
[341503972,1730932259899,-2039.34392387,0.00038,120]
[341503973,1730932259908,-250.0,0.00038,10]
[341503974,1730932259918,-1215.75756426,0.00038,10]
[341503975,1730932259927,-151.0,0.00038,7]
[341503976,1730932259936,-151.0,0.00038,7]
[341503977,1730932259946,-151.0,0.00038,7]
[341503978,1730932259955,-203.997518,0.00038,7]
[341503979,1730932259964,-217.6171,0.00038,7]
[341503980,1730932259974,-217.6171,0.00038,7]
[341503981,1730932259984,-151.0,0.00038,7]
[341503982,1730932259993,-169.234662,0.00038,7]
[341503983,1730932260002,-169.234654,0.00038,7]
[341503984,1730932260012,-242.669488,0.00038,7]
[341503985,1730932260021,-215.059527,0.00038,7]
[341503986,1730932260030,-257.388567,0.00038,7]
[341503987,1730932260041,-257.388567,0.00038,7]
[341503988,1730932260051,-151.0,0.00038,7]
[341503989,1730932260060,-151.0,0.00038,7]
[341503990,1730932260070,-151.0,0.00038,7]
[341503991,1730932260079,-151.0,0.00038,7]
[341503992,1730932260088,-151.0,0.00038,7]
[341503993,1730932260098,-151.0,0.00038,7]
[341503994,1730932260107,-454.297626,0.00038,7]
[341503995,1730932260116,-454.297626,0.00038,7]
[341503996,1730932260125,-271.568934,0.00038,7]
[341503997,1730932260135,-271.568934,0.00038,7]
[341503998,1730932260145,-151.0,0.00038,7]
[341503999,1730932260154,-151.0,0.00038,7]
[341504000,1730932260163,-151.0,0.00038,7]
[341504001,1730932260172,-611.299316,0.00038,7]
[341504002,1730932260181,-611.299316,0.00038,7]
[341504003,1730932260191,-301.9,0.00038,26]
[341504004,1730932260200,-151.0,0.00038,7]
[341504005,1730932260209,-151.0,0.00038,7]
[341504006,1730932260219,-151.0,0.00038,7]
[341504007,1730932260228,-200.367998,0.00038,7]
[341504008,1730932260237,-996.5,0.00038,26]
[341504009,1730932260247,-4684.383306,0.00038,7]
[341504010,1730932260257,-1146.683713,0.00038,7]
[341504011,1730932260266,-541.687758,0.00038,7]
[341504012,1730932260275,-4684.383302,0.00038,7]
[341504013,1730932260284,-1146.683713,0.00038,7]
[341504014,1730932260294,-541.687758,0.00038,7]
[341504015,1730932260303,-164.338677,0.00038,7]
[341504016,1730932260312,-164.338677,0.00038,7]
[341504017,1730932260322,-250.0,0.00038,30]
[341504018,1730932260331,-413.83836,0.00038,7]
[341504019,1730932260340,-413.83836,0.00038,7]
[341504020,1730932260349,-151.0,0.00038,7]
[341504021,1730932260358,-1528.422435,0.00038,7]
[341504022,1730932260367,-1528.422435,0.00038,7]
[341504023,1730932260376,-2040.750861,0.00038,7]
[341504024,1730932260385,-2040.750869,0.00038,7]
[341504025,1730932260398,-151.0,0.00038,7]
[341504026,1730932260407,-151.0,0.00038,7]
[341504027,1730932260417,-319.033336,0.00038,7]
[341504028,1730932260426,-319.033332,0.00038,7]
[341504029,1730932260436,-380.25874861,0.00038,2]
[341504030,1730932260445,-348.606272,0.00038,7]
[341504031,1730932260455,-348.606272,0.00038,7]
[341504032,1730932260465,-151.0,0.00038,7]
[341504033,1730932260474,-585.196316,0.00038,7]